bitfinex/quotes_SOLUSD_20240825
["timestamp","ask_amount","ask_price","bid_price","bid_amount"]
[1724574128754,51.3584,157.27,157.19,0.85134569]
[1724574129660,7.94911524,157.26,157.18,16.616]
[1724574129971,45.0,157.25,157.19,1.59227651]
[1724574130173,1.59032236,157.24,157.18,16.616]
[1724574130463,1.59032236,157.24,157.19,1.59218641]
[1724574130665,1.59032236,157.24,157.18,16.616]
[1724574130966,1.59032236,157.24,157.19,1.59221358]
[1724574131146,1.59032236,157.24,157.18,16.616]
[1724574131535,1.59032236,157.24,157.19,1.59221681]
[1724574131735,1.59032236,157.24,157.18,16.616]
[1724574131956,1.59032236,157.24,157.19,1.59221681]
[1724574132163,1.59032236,157.24,157.18,16.616]
[1724574132767,1.59032986,157.23,157.18,16.616]
[1724574133270,46.59032986,157.23,157.18,16.616]
[1724574133461,1.59032986,157.23,157.18,16.616]
[1724574133655,45.0,157.24,157.18,16.616]
[1724574133969,6.3589,157.26,157.18,16.616]
[1724574134166,45.0,157.25,157.18,16.616]
[1724574135857,1.59032278,157.24,157.18,16.616]
[1724574136245,21.59032278,157.24,157.18,16.616]
[1724574136446,45.0,157.23,157.18,16.616]
[1724574136757,45.0,157.23,157.17,6.2774]
[1724574136758,1.59058725,157.22,157.17,6.2774]
[1724574136949,1.59058725,157.22,157.15,1.59262758]
[1724574137155,1.59058725,157.22,157.14,15.4808]
[1724574137576,6.3609,157.21,157.14,15.4808]
[1724574137874,1.59058725,157.22,157.1,15.4808]
[1724574137875,46.5909363,157.2,157.1,15.4808]
[1724574138067,46.5909363,157.2,157.11,3.89844637]
[1724574138068,6.3621,157.18,157.11,3.89844637]
[1724574138381,1.59113233,157.18,157.12,1.59294321]
[1724574138560,1.59113233,157.18,157.11,2.30538543]
[1724574138764,1.59088969,157.17,157.12,1.59289661]
[1724574138955,1.59088969,157.17,157.11,2.30539555]
[1724574139274,1.59088969,157.17,157.1,15.4808]
[1724574139565,1.59088969,157.17,157.11,3.89834819]
[1724574139771,1.59088969,157.17,157.1,15.4808]
[1724574139973,1.59088969,157.17,157.11,3.8983488]
[1724574140150,1.59088969,157.17,157.12,1.59291337]
[1724574140345,1.59088969,157.17,157.1,15.4808]
[1724574140551,1.59088969,157.17,157.11,1.59294961]
[1724574140752,1.59088969,157.17,157.1,15.4808]
[1724574140977,1.59088969,157.17,157.11,1.59294964]
[1724574141148,1.59088969,157.17,157.1,15.4808]
[1724574141353,1.59088969,157.17,157.11,1.59294964]
[1724574141561,7.95338969,157.17,157.1,15.4808]
[1724574141769,45.0,157.16,157.11,1.59298582]
[1724574141961,1.59116213,157.15,157.1,15.4808]
[1724574142157,1.59116213,157.15,157.11,1.59294999]
[1724574142369,1.59116253,157.14,157.11,2.30552274]
[1724574142578,45.0,157.16,157.1,15.4808]
[1724574142774,1.59123347,157.15,157.11,1.59295002]
[1724574142951,1.59135091,157.14,157.1,15.4808]
[1724574143279,7.95545674,157.13,157.03,15.6918]
[1724574143575,7.95545674,157.13,157.04,3.90086794]
[1724574143779,51.3646,157.12,157.05,1.59368978]
[1724574144093,1.59168091,157.11,157.04,2.30717796]
[1724574144253,1.59168385,157.1,157.03,15.6918]
[1724574144580,1.59168385,157.1,157.04,3.90089363]
[1724574144757,1.59168385,157.1,157.03,15.6918]
[1724574144966,6.3658,157.09,157.03,15.6918]
[1724574145168,1.5919129,157.08,157.03,15.6918]
[1724574145492,1.59191437,157.07,157.03,15.6918]
[1724574145656,7.95851437,157.07,156.99,21.947]
[1724574145858,45.0,157.06,156.99,21.947]
[1724574146084,1.59218067,157.05,156.99,21.947]
[1724574146389,1.59218067,157.04,156.99,21.947]
[1724574146978,45.0,157.06,156.99,21.947]
[1724574147285,1.5922293,157.05,156.99,21.947]
[1724574147495,1.59230989,157.04,156.99,21.947]
[1724574149178,1.59230989,157.04,156.99,15.6918]
[1724574149567,51.367,157.06,156.99,15.6918]
[1724574149767,1.59225635,157.05,156.99,15.6918]
[1724574149966,1.59229003,157.05,156.99,15.6918]
[1724574158903,1.59218184,157.04,156.95,21.947]
[1724574159068,1.59218184,157.04,156.96,20.0]
[1724574159783,1.59218184,157.04,156.95,21.947]
[1724574159784,46.59218184,157.04,156.95,21.947]
[1724574159983,1.59261289,157.03,156.95,21.947]
[1724574161293,51.3679,157.04,156.96,20.0]
[1724574161514,1.59260769,157.03,156.96,20.0]
[1724574162688,46.59229164,157.04,156.96,20.0]
[1724574162882,1.59229164,157.04,156.96,20.0]
[1724574163288,17.61879313,157.03,156.92,6.4574]
[1724574163834,45.0,157.02,156.92,6.4574]
[1724574163989,1.59257665,157.01,156.92,6.4574]
[1724574164678,1.59257665,157.01,156.93,20.0]
[1724574165374,7.96167665,157.01,156.93,20.0]
[1724574165703,7.96167665,157.01,156.92,20.0]
[1724574165704,45.0,157.0,156.92,20.0]
[1724574165886,1.59288302,156.99,156.92,20.0]
[1724574166076,1.59288314,156.98,156.92,20.0]
[1724574167282,1.59288314,156.98,156.89,20.0]
[1724574168992,1.59288314,156.98,156.88,6.0771]
[1724574170399,46.59288314,156.98,156.89,20.0]
[1724574170726,52.96308314,156.98,156.89,20.0]
[1724574170915,52.96308314,156.98,156.88,20.0]
[1724574171809,46.59288314,156.98,156.88,20.0]
[1724574172017,1.59288314,156.98,156.88,20.0]
[1724574177003,51.3699,156.99,156.89,0.85851906]
[1724574177208,1.59301213,156.98,156.88,20.0]
[1724574180220,15.9614,156.96,156.88,20.0]
[1724574180422,46.59330387,156.95,156.85,20.0]
[1724574180723,46.59330387,156.95,156.86,1.59518192]
[1724574181304,46.59330387,156.95,156.86,3.90607209]
[1724574182418,15.9614,156.96,156.86,3.90607209]
[1724574182618,1.5930594,156.95,156.87,1.59518192]
[1724574184315,1.5930594,156.95,156.88,1.59518192]
[1724574184520,1.5930594,156.95,156.87,1.59518192]
[1724574184830,1.5930594,156.95,156.88,1.59518192]
[1724574185025,1.5930594,156.95,156.87,1.59518192]
[1724574185527,1.5930594,156.95,156.87,4.62160454]
[1724574185828,1.5930594,156.95,156.88,1.59511293]
[1724574186026,1.5930594,156.95,156.85,20.0]
[1724574186027,1.5930594,156.95,156.87,1.59511293]
[1724574186215,46.5930594,156.95,156.87,1.59511293]
[1724574186827,46.5930594,156.95,156.88,1.59511293]
[1724574187020,46.5930594,156.95,156.89,1.59511293]
[1724574187206,46.5930594,156.95,156.9,1.59511293]
[1724574187406,46.5930594,156.95,156.86,1.59514919]
[1724574187607,46.5930594,156.95,156.87,1.59514919]
[1724574187808,46.5930594,156.95,156.88,1.59514919]
[1724574188012,46.5930594,156.95,156.89,1.59514919]
[1724574188225,46.5930594,156.95,156.86,1.59521876]
[1724574188432,46.5930594,156.95,156.87,1.59521876]
[1724574188629,46.5930594,156.95,156.88,1.59521876]
[1724574188926,46.5930594,156.95,156.89,1.59521876]
[1724574189128,15.9614,156.96,156.86,0.85895377]
[1724574189305,1.59312472,156.95,156.9,1.59513235]
[1724574189506,1.59312472,156.95,156.85,25.83552486]
[1724574189805,1.59312472,156.95,156.86,1.59512351]
[1724574190008,1.59312472,156.95,156.87,1.59512351]
[1724574190327,1.59312472,156.95,156.88,1.59512351]
[1724574190511,15.9614,156.96,156.89,1.59512351]
[1724574190715,15.9614,156.96,156.9,1.59512351]
[1724574190929,15.9614,156.96,156.91,1.59512351]
[1724574191104,15.9614,156.96,156.85,25.83552486]
[1724574191429,15.9614,156.96,156.86,46.59509434]
[1724574191609,15.9614,156.96,156.87,27.4306192]
[1724574191810,15.9614,156.96,156.88,1.59509434]
[1724574192010,15.9614,156.96,156.89,1.59509434]
[1724574192210,15.9614,156.96,156.9,1.59509434]
[1724574192433,15.9614,156.96,156.87,25.83552486]
[1724574192635,15.9614,156.96,156.88,1.59510277]
[1724574192815,15.9614,156.96,156.89,1.59510277]
[1724574193005,15.9614,156.96,156.9,1.59510277]
[1724574193214,15.9614,156.96,156.87,25.83552486]
[1724574193540,15.9614,156.96,156.88,1.59510277]
[1724574193710,15.9614,156.96,156.89,1.59510277]
[1724574194008,15.9614,156.96,156.9,1.59510277]
[1724574194332,1.59307519,156.95,156.87,25.83552486]
[1724574194635,46.59307519,156.95,156.88,1.5951121]
[1724574194836,46.59307519,156.95,156.89,1.5951121]
[1724574195013,46.59307519,156.95,156.85,20.0]
[1724574195214,46.59307519,156.95,156.86,1.59517572]
[1724574195428,46.59307519,156.95,156.87,1.59517572]
[1724574195727,46.59307519,156.95,156.88,1.59517572]
[1724574195927,46.59307519,156.95,156.89,1.59517572]
[1724574196126,46.59307519,156.95,156.85,20.0]
[1724574196329,46.59307519,156.95,156.86,1.59517572]
[1724574196530,45.0,156.95,156.87,1.59517572]
[1724574196721,15.9614,156.96,156.88,1.59517572]
[1724574196922,15.9614,156.96,156.89,1.59517572]
[1724574197220,15.9614,156.96,156.86,1.59510257]
[1724574197421,15.9614,156.96,156.87,1.595103]
[1724574197625,15.9614,156.96,156.88,1.595103]
[1724574197828,15.9614,156.96,156.89,1.595103]
[1724574198148,15.9614,156.96,156.85,20.0]
[1724574198445,15.9614,156.96,156.86,1.59510257]
[1724574198630,15.9614,156.96,156.87,1.59510257]
[1724574198829,15.9614,156.96,156.88,1.59510257]
[1724574199030,15.9614,156.96,156.89,1.59510257]
[1724574199237,15.9614,156.96,156.85,20.0]
[1724574199441,15.9614,156.96,156.86,1.59510315]
[1724574199742,15.9614,156.96,156.87,2.45361136]
[1724574200246,6.0456,157.0,156.87,2.45361136]
[1724574200247,1.59286284,156.99,156.88,1.59510315]
[1724574200422,22.364,157.0,156.89,1.59510315]
[1724574200423,1.59288012,156.98,156.89,1.59510315]
[1724574200624,1.59288012,156.98,156.9,1.59510315]
[1724574200918,1.59288012,156.98,156.91,1.59510315]
[1724574201122,1.59288012,156.98,156.92,1.59510315]
[1724574201324,1.59288288,156.99,156.89,20.0]
[1724574201529,1.59288288,156.98,156.9,1.59491627]
[1724574201745,1.59288288,156.98,156.91,1.59491627]
[1724574201922,1.59288288,156.98,156.92,1.59491627]
[1724574202125,1.59288288,156.98,156.88,20.0]
[1724574202336,1.59288288,156.98,156.89,1.59490798]
[1724574202552,1.59288288,156.98,156.9,1.59490798]
[1724574202726,1.59288288,156.98,156.91,1.59490798]
[1724574202926,1.59288288,156.98,156.89,4.25676651]
[1724574202927,1.59288288,156.98,156.92,1.59490798]
[1724574203242,1.59288288,156.98,156.93,1.59491658]
[1724574203444,1.59288288,156.98,156.9,20.0]
[1724574203634,1.59288288,156.98,156.91,1.5949076]
[1724574203829,1.59288288,156.98,156.92,1.5949076]
[1724574204032,1.59288288,156.98,156.93,1.5949076]
[1724574204342,1.59288288,156.98,156.9,19.94644136]
[1724574204548,16.3184,157.0,156.91,31.68706808]
[1724574204844,16.3184,157.0,156.92,11.68706808]
[1724574205047,28.7906,157.04,156.93,26.70871867]
[1724574205243,22.4228,157.04,156.94,6.70864156]
[1724574205449,22.4228,157.04,156.95,25.85164095]
[1724574205656,22.4228,157.04,156.96,1.59489959]
[1724574205834,22.4228,157.04,156.97,1.59489959]
[1724574206031,22.4228,157.04,156.98,1.59489959]
[1724574206251,22.4228,157.04,156.97,20.0]
[1724574206252,16.2781,157.04,156.97,20.0]
[1724574206450,16.2781,157.04,156.98,2.45087426]
[1724574206632,16.2781,157.04,156.99,1.59442235]
[1724574206945,16.2781,157.04,157.0,1.59430155]
[1724574207138,28.789,157.08,156.94,15.6897]
[1724574207346,22.4228,157.08,156.95,62.53816553]
[1724574207653,22.4228,157.08,156.96,12.5381707]
[1724574207654,28.789,157.08,156.96,12.5381707]
[1724574207851,28.789,157.08,156.97,27.4264616]
[1724574208031,1.59220281,157.07,156.98,1.5943016]
[1724574208232,46.59220281,157.07,156.99,1.5943016]
[1724574208442,46.59220281,157.07,157.0,1.5943016]
[1724574208443,1.59220233,157.07,157.0,1.5943016]
[1724574208634,1.59220233,157.07,156.97,32.06726]
[1724574208635,1.59220233,157.07,157.01,1.5943016]
[1724574208852,1.59220233,157.07,157.02,1.5943016]
[1724574209045,1.59220233,157.07,156.99,20.0]
[1724574209360,1.59220233,157.07,157.0,5.84790083]
[1724574209549,1.59220233,157.07,157.01,1.59404624]
[1724574209862,1.59220233,157.07,157.02,1.59391189]
[1724574210344,24.01496323,157.08,157.03,1.59391189]
[1724574210528,24.01496323,157.08,156.99,20.0]
[1724574210740,45.0,157.07,157.0,1.59385211]
[1724574210939,16.2781,157.08,157.01,1.59385211]
[1724574211254,16.2781,157.08,157.02,1.59385211]
[1724574211453,16.2781,157.08,157.03,1.59385211]
[1724574211652,16.2781,157.08,156.98,20.0]
[1724574211851,16.2781,157.08,156.99,35.84755104]
[1724574212062,16.2781,157.08,157.0,21.59381006]
[1724574212239,16.2781,157.08,157.01,1.59381006]
[1724574212555,16.2781,157.08,157.02,1.59381006]
[1724574212755,1.59190699,157.1,157.0,20.0]
[1724574212952,20.0,157.11,157.01,1.59380939]
[1724574213260,46.59180738,157.1,157.0,35.6897]
[1724574213437,46.59180738,157.1,157.01,1.59376285]
[1724574213629,46.59180738,157.1,157.02,1.59376285]
[1724574213838,45.0,157.1,157.03,0.85538324]
[1724574214033,45.0,157.11,157.02,1.59376285]
[1724574214237,45.0,157.11,157.01,1.59376285]
[1724574214757,45.0,157.11,157.02,0.85524336]
[1724574215051,22.4228,157.12,157.01,1.59376285]
[1724574215261,22.4228,157.12,157.02,2.44867448]
[1724574215442,22.4228,157.12,157.0,41.51838036]
[1724574215443,22.4228,157.12,157.03,1.59376285]
[1724574215760,16.2781,157.12,157.01,1.59376285]
[1724574215942,1.59142274,157.15,157.02,37.82886285]
[1724574216141,28.7861,157.16,157.02,37.82886285]
[1724574216142,22.4228,157.16,157.03,22.4481439]
[1724574216367,22.4228,157.16,157.04,1.59376285]
[1724574216559,1.59137335,157.15,157.04,1.59376285]
[1724574216735,1.59140373,157.14,157.04,1.59376285]
[1724574217057,28.7857,157.16,157.05,0.85433662]
[1724574217655,45.0,157.15,157.05,0.85433662]
[1724574218555,22.4228,157.16,157.04,1.59328402]
[1724574218763,22.4228,157.16,157.05,15.088]
[1724574218964,22.4228,157.16,157.06,20.0]
[1724574219741,45.0,157.15,157.06,20.0]
[1724574220163,1.59131606,157.14,157.06,20.0]
[1724574222649,45.0,157.15,157.07,0.85420044]
[1724574222843,45.0,157.15,157.07,6.4329]
[1724574223048,21.7346,157.22,157.08,36.6415]
[1724574223243,1.59080207,157.21,157.08,36.6415]
[1724574223443,1.590802,157.2,157.08,36.6415]
[1724574224145,1.590802,157.2,157.08,66.6415]
[1724574227667,1.590802,157.2,157.08,36.6415]
[1724574229964,1.590802,157.2,157.09,23.0744]
[1724574230152,45.0,157.2,157.1,20.0]
[1724574230673,45.0,157.2,157.1,50.0]
[1724574231247,1.59084476,157.19,157.1,50.0]
[1724574232650,1.59084476,157.19,157.1,20.0]
[1724574235671,7.95254476,157.19,157.1,20.0]
[1724574235972,45.0,157.18,157.1,20.0]
[1724574236148,1.5910502,157.17,157.1,20.0]
[1724574236469,1.5910502,157.17,157.09,23.0744]
[1724574236644,6.3629,157.16,157.09,23.0744]
[1724574236848,46.59130564,157.15,157.09,23.0744]
[1724574237045,1.59129946,157.14,157.09,23.0744]
[1724574239060,45.0,157.15,157.09,16.6415]
[1724574239368,1.59137597,157.14,157.09,16.6415]
[1724574244357,45.0,157.15,157.09,16.6415]
[1724574244560,1.59119603,157.14,157.09,16.6415]
[1724574245472,1.59119846,157.16,157.09,16.6415]
[1724574245658,46.59119846,157.16,157.09,16.6415]
[1724574247777,1.59140163,157.15,157.09,16.6415]
[1724574247979,1.59140165,157.14,157.09,16.6415]
[1724574248472,1.59140165,157.14,157.05,6.6313]
[1724574248473,6.3649,157.12,157.05,23.0277]
[1724574248774,46.59179583,157.11,157.05,23.0277]
[1724574248962,1.59178955,157.1,157.05,23.0277]
[1724574250480,1.59178955,157.1,157.06,1.59348448]
[1724574250779,1.59178955,157.1,157.05,23.0277]
[1724574250985,1.59178955,157.1,157.06,1.59349068]
[1724574251154,1.59178955,157.1,157.05,23.0277]
[1724574251355,1.59178955,157.1,157.06,3.90029477]
[1724574251677,1.59178955,157.1,157.05,23.0277]
[1724574251881,1.59178955,157.1,157.06,1.59353179]
[1724574252079,1.59178955,157.1,157.05,23.0277]
[1724574252682,1.59178955,157.1,157.06,1.59360949]
[1724574252868,1.59178955,157.1,157.05,23.0277]
[1724574253069,1.59178955,157.1,157.06,1.59360462]
[1724574253367,1.59178955,157.1,157.05,23.0277]
[1724574253579,1.59178955,157.1,157.06,1.59361454]
[1724574253763,1.59178955,157.1,157.07,1.59352178]
[1724574253963,1.59178955,157.1,157.05,23.0277]
[1724574254158,1.59178955,157.1,157.06,3.90029477]
[1724574254473,1.59178955,157.1,157.07,1.59348548]
[1724574254675,1.59178955,157.1,157.05,23.0277]
[1724574254873,1.59178955,157.1,157.06,1.59348534]
[1724574255186,45.0,157.11,157.07,1.59348534]
[1724574255354,1.59165593,157.1,157.05,23.0277]
[1724574255560,1.59165593,157.1,157.06,1.59346658]
[1724574255871,1.59165593,157.1,157.07,1.59346643]
[1724574256066,1.59165593,157.1,157.05,23.0277]
[1724574256258,1.59165593,157.1,157.06,1.59346534]
[1724574256464,1.59165593,157.1,157.07,1.59346534]
[1724574256686,1.59165593,157.1,157.05,23.0277]
[1724574256980,1.59165593,157.1,157.06,1.59346505]
[1724574257183,1.59165593,157.1,157.07,1.59346505]
[1724574257482,1.59165593,157.1,157.05,23.0277]
[1724574257662,1.59165593,157.1,157.06,1.59347553]
[1724574257860,1.59165593,157.1,157.07,1.59347553]
[1724574258076,1.59165593,157.1,157.05,23.0277]
[1724574258391,1.59165593,157.1,157.06,1.59347524]
[1724574258579,45.0,157.12,157.07,1.59347524]
[1724574258876,45.0,157.13,157.05,23.0277]
[1724574259081,45.0,157.13,157.06,1.5934561]
[1724574259277,45.0,157.13,157.07,1.5934561]
[1724574259476,1.59157136,157.12,157.08,1.5934561]
[1724574259786,1.59157136,157.12,157.05,23.0277]
[1724574259962,1.59157136,157.12,157.06,1.59346607]
[1724574260162,1.59157136,157.12,157.07,1.59346607]
[1724574260374,1.59157136,157.12,157.08,1.59346607]
[1724574260575,1.59157136,157.12,157.05,23.0277]
[1724574260871,1.59157136,157.12,157.06,1.5934458]
[1724574261070,1.59157136,157.12,157.07,1.5934458]
[1724574261273,1.59157136,157.12,157.08,1.5934458]
[1724574261478,1.59157136,157.12,157.05,23.0277]
[1724574261680,1.59157136,157.12,157.06,1.59346625]
[1724574261881,1.59157136,157.12,157.07,1.59346625]
[1724574262196,7.95627136,157.12,157.05,23.0277]
[1724574262383,45.0,157.11,157.06,1.59348495]
[1724574262573,1.59162629,157.1,157.07,1.59348355]
[1724574262775,1.59162629,157.1,157.05,23.0277]
[1724574262994,1.59162629,157.1,157.06,1.59348394]
[1724574263291,1.59162629,157.1,157.07,1.59348394]
[1724574263494,1.59162629,157.1,157.05,23.0277]
[1724574263784,1.59162629,157.1,157.06,1.59348394]
[1724574263992,1.59162629,157.1,157.07,1.59348394]
[1724574264179,1.59162629,157.1,157.08,1.59348394]
[1724574264388,1.59162629,157.1,157.05,23.0277]
[1724574264568,45.0,157.11,157.06,1.59346685]
[1724574264765,45.0,157.12,157.07,1.59346685]
[1724574264976,45.0,157.12,157.08,1.59346685]
[1724574265182,6.3632,157.16,157.09,1.59345536]
[1724574265384,1.59130045,157.15,157.1,1.59345536]
[1724574265681,1.5913004,157.14,157.11,1.59316282]
[1724574265887,1.5913004,157.14,157.07,4.25197187]
[1724574266084,1.5913004,157.14,157.08,1.59307419]
[1724574266402,1.5913004,157.14,157.09,1.59307404]
[1724574266588,46.59129882,157.15,157.1,1.59307404]
[1724574266888,6.3621,157.18,157.11,1.59307404]
[1724574267081,6.3621,157.18,157.08,20.0]
[1724574267399,1.5911967,157.17,157.09,1.59307034]
[1724574267559,1.5911967,157.17,157.1,1.59307034]
[1724574267761,1.5911967,157.17,157.11,1.59307034]
[1724574267967,1.5911967,157.17,157.12,17.52417034]
[1724574268290,21.59104384,157.21,157.12,15.9311]
[1724574268468,6.3617,157.19,157.12,15.9311]
[1724574268795,1.59104428,157.18,157.12,15.9311]
[1724574268967,1.59104428,157.17,157.12,15.9311]
[1724574272911,1.59104428,157.17,157.13,1.59288087]
[1724574273219,1.59104428,157.17,157.14,1.59285229]
[1724574273424,1.59104428,157.17,157.12,15.9311]
[1724574273711,1.59104428,157.17,157.13,1.59287744]
[1724574273891,1.59104428,157.17,157.14,1.59287744]
[1724574274101,1.59104428,157.17,157.12,15.9311]
[1724574274403,1.59104428,157.17,157.13,1.59285243]
[1724574274609,45.0,157.18,157.14,1.59285243]
[1724574274906,1.59088539,157.17,157.12,15.9311]
[1724574275111,1.59088539,157.17,157.13,1.59287481]
[1724574275316,1.59088539,157.17,157.14,1.59287481]
[1724574275485,15.8944,157.29,157.14,15.9311]
[1724574275691,15.829,157.3,157.15,26.69383102]
[1724574275916,15.829,157.3,157.16,1.59244636]
[1724574276101,15.829,157.3,157.15,20.85181691]
[1724574276102,15.829,157.3,157.17,2.4438719]
[1724574276437,15.829,157.3,157.18,1.59244636]
[1724574276715,6.359,157.26,157.19,1.59244636]
[1724574276906,6.359,157.26,157.15,20.0]
[1724574276907,1.59053177,157.25,157.15,20.0]
[1724574277110,1.59053177,157.25,157.16,1.59228779]
[1724574277311,1.59053177,157.25,157.17,1.59228779]
[1724574277610,1.59053177,157.25,157.18,1.59228779]
[1724574277822,1.59053177,157.25,157.15,20.0]
[1724574277989,46.59053177,157.25,157.16,1.59230715]
[1724574278190,46.59053177,157.25,157.17,1.59230715]
[1724574278407,46.59053177,157.25,157.18,1.59230715]
[1724574278596,46.59053177,157.25,157.15,20.0]
[1724574278796,46.59053177,157.25,157.16,1.59228903]
[1724574279125,1.59053177,157.25,157.15,20.0]
[1724574279305,1.59053177,157.25,157.16,1.59228888]
[1724574279492,1.59053177,157.25,157.17,1.59228888]
[1724574279695,1.59053177,157.25,157.18,1.59228888]
[1724574279919,1.59053177,157.25,157.15,20.0]
[1724574280128,1.59053177,157.25,157.16,1.59227091]
[1724574280319,1.59053177,157.25,157.17,1.59227091]
[1724574280616,1.59053177,157.25,157.18,1.59227091]
[1724574280786,1.59053177,157.25,157.15,20.0]
[1724574280991,1.59053177,157.25,157.16,1.59227626]
[1724574281223,1.59053177,157.25,157.17,1.59227626]
[1724574281517,1.59053177,157.25,157.18,1.59223438]
[1724574281702,1.59053177,157.25,157.15,20.0]
[1724574281903,1.59053177,157.25,157.16,1.59223104]
[1724574282099,1.59053177,157.25,157.17,1.59223104]
[1724574282410,1.59053177,157.25,157.15,20.0]
[1724574282604,1.59053177,157.25,157.16,1.59223467]
[1724574282817,1.59053177,157.25,157.17,1.59223467]
[1724574283023,1.59053177,157.25,157.18,1.59221626]
[1724574283200,1.59053177,157.25,157.16,1.59221626]
[1724574283397,1.59053177,157.25,157.15,20.0]
[1724574283715,1.59053177,157.25,157.17,1.59221641]
[1724574283893,1.59053177,157.25,157.17,3.18443296]
[1724574284089,1.59053177,157.25,157.17,1.59221641]
[1724574284322,1.59053177,157.25,157.17,3.18443296]
[1724574284513,1.59053177,157.25,157.17,1.59221641]
[1724574284722,1.59053177,157.25,157.17,3.18443296]
[1724574285014,1.59053177,157.25,157.17,1.59221641]
[1724574285219,21.59053177,157.25,157.17,1.59221641]
[1724574285526,45.0,157.24,157.17,1.59221641]
[1724574285723,1.59060894,157.23,157.17,1.59221641]
[1724574285891,7.95080894,157.23,157.17,1.59221641]
[1724574286096,45.0,157.22,157.17,1.59221641]
[1724574286403,1.59067414,157.21,157.17,1.59221641]
[1724574286715,1.59067262,157.2,157.17,1.59221641]
[1724574287703,1.59067262,157.2,157.14,15.9311]
[1724574291909,46.59067262,157.2,157.14,15.9311]
[1724574292118,1.59067262,157.2,157.14,15.9311]
[1724574292320,1.59067262,157.2,157.13,6.353]
[1724574292818,46.59067262,157.2,157.13,6.353]
[1724574293017,6.3624,157.18,157.1,15.2576]
[1724574293197,46.59115063,157.17,157.1,15.2576]
[1724574293632,1.59115063,157.17,157.1,15.2576]
[1724574294627,1.59115063,157.17,157.1,15.2576]
[1724574295428,6.3633,157.16,157.1,15.2576]
[1724574295606,46.59124296,157.15,157.1,15.2576]
[1724574295930,1.59124296,157.14,157.1,15.2576]
[1724574300347,1.59124296,157.14,157.06,16.3026]
[1724574300516,1.59124296,157.14,157.07,21.59315398]
[1724574300718,1.59124296,157.14,157.08,1.59315398]
[1724574301324,1.59124296,157.14,157.06,16.3026]
[1724574301725,7.95504296,157.14,157.06,16.3026]
[1724574301941,45.0,157.13,157.06,16.3026]
[1724574302246,1.5914773,157.12,157.06,16.3026]
[1724574313275,1.5914773,157.12,157.05,6.052]
[1724574314370,1.5914773,157.12,157.05,7.64549547]
[1724574314578,1.5914773,157.12,157.05,6.052]
[1724574314940,1.5914773,157.12,157.05,7.64549547]
[1724574315145,1.5914773,157.12,157.04,3.90032793]
[1724574315354,1.5914773,157.12,157.05,1.59349547]
[1724574315576,1.5914773,157.12,157.04,3.90032793]
[1724574315777,1.5914773,157.12,157.05,1.59349547]
[1724574316279,15.8468,157.18,157.06,0.85475915]
[1724574316450,20.0,157.17,157.07,1.59349547]
[1724574316777,1.59113461,157.16,157.07,3.90032793]
[1724574316973,1.59113461,157.16,157.07,1.59349547]
[1724574317162,1.59113461,157.16,157.07,3.89974705]
[1724574318255,7.95403461,157.16,157.07,3.89974705]
[1724574318456,7.95403461,157.16,157.07,1.59349547]
[1724574318675,45.0,157.15,157.07,1.59349547]
[1724574318871,1.59135696,157.14,157.07,1.59349547]
[1724574320065,1.59135696,157.14,157.06,20.0]
[1724574320587,1.59135696,157.14,157.07,1.59323818]
[1724574322473,1.59135696,157.14,157.07,3.89945316]
[1724574322675,7.95515696,157.14,157.06,20.0]
[1724574322857,45.0,157.13,157.06,20.0]
[1724574323062,1.59149468,157.12,157.06,20.0]
[1724574323256,46.37347031,157.13,157.06,20.0]
[1724574323455,15.8468,157.18,157.07,7.08432902]
[1724574323668,15.8468,157.18,157.08,22.44632225]
[1724574323867,15.3284,157.22,157.08,20.8531616]
[1724574324068,15.3284,157.22,157.1,15.021]
[1724574324276,15.3284,157.22,157.11,24.75107677]
[1724574324473,15.3284,157.22,157.12,3.89857227]
[1724574324681,15.3284,157.22,157.13,0.85250901]
[1724574324864,15.3284,157.22,157.13,3.15794069]
[1724574325178,15.3284,157.22,157.13,0.85250901]
[1724574325389,15.3284,157.22,157.13,3.15794069]
[1724574325558,15.3284,157.22,157.14,1.59263049]
[1724574325863,15.3284,157.22,157.15,0.85250696]
[1724574326178,1.59061829,157.21,157.12,1.59266788]
[1724574326380,1.5907935,157.2,157.12,2.30515307]
[1724574326553,1.5907935,157.2,157.1,15.021]
[1724574326757,46.5907935,157.2,157.11,3.89798565]